lending/lending_fUSD_20240604
["ID","MTS","AMOUNT","RATE_DAILY","PERIOD"]
[328498241,1717461039013,-225.29809377,0.0002211,2]
[328498243,1717461039023,-5000.0,0.0002219,2]
[328498245,1717461039032,-5000.0,0.0002219,2]
[328498247,1717461039042,-5000.0,0.0002219,2]
[328498249,1717461039052,-5000.0,0.0002219,2]
[328498251,1717461039062,-150.0,0.000224,3]
[328498253,1717461039071,-22528.75793665,0.000225,2]
[328498255,1717461039082,-208.4,0.0002257,3]
[328498257,1717461039091,-1000.0,0.00022591,2]
[328498259,1717461039101,-11519.99,0.000227,2]
[328498261,1717461039112,-1326.826,0.00022726,2]
[328498263,1717461039125,-206.0,0.00022726,2]
[328498265,1717461039135,-545.0,0.00022726,2]
[328498267,1717461039145,-770.69761321,0.00022726,2]
[328498277,1717461039238,-259.59838679,0.00022726,2]
[328498279,1717461039248,-1448.0,0.00022726,2]
[328498281,1717461039258,-607.4,0.00022755,2]
[328498284,1717461039268,-9492.6103,0.000228,2]
[328498285,1717461039278,-1660.07210848,0.000228,2]
[328498287,1717461039287,-333.97718611,0.000228,2]
[328498289,1717461039297,-1211.54065397,0.00022898,2]
[328498303,1717461039307,-462.61775992,0.00022899,2]
[328498304,1717461039501,-151.5369101,0.00022899,2]
[328498305,1717461039510,-500.0,0.00022899,2]
[328498306,1717461039520,-500.0,0.00022899,2]
[328498307,1717461039530,-275.83474814,0.00022899,2]
[328498308,1717461039539,-14831.87003292,0.000229,5]
[328498309,1717461039551,-3140.10265864,0.000229,5]
[328498349,1717461040847,-304.184176,0.00020959,2]
[328498350,1717461040861,-177.6164762,0.00020959,2]
[328498351,1717461040873,-563.21663336,0.000229,5]
[328498352,1717461040885,-1322.78973944,0.000229,5]
[328498353,1717461041501,-39733.33092006,0.000229,5]
[328498366,1717461043629,-380.15220395,0.000229,5]
[328498367,1717461043716,-2080.03270456,0.000229,5]
[328498368,1717461043727,-1961.85666371,0.000229,5]
[328498392,1717461046965,-461.72562503,0.00022898,2]
[328498394,1717461046975,-491.86402675,0.000229,5]
[328498398,1717461047040,-24075.73822541,0.000229,5]
[328498399,1717461047051,-267.82777616,0.000229,5]
[328498401,1717461479419,151.0,0.00027811,30]
[328498402,1717461790769,5400.0,0.00031,30]
[328498403,1717461857073,950.1418415,0.00031,30]
[328498404,1717462009183,19026.921777,0.000308,30]
[328498405,1717462009527,19026.921777,0.000308,30]
[328498411,1717462115595,505.68316963,0.00031,30]
[328498432,1717462233203,-411.71,0.00013465,2]
[328498433,1717462233212,-155.0,0.00013532,2]
[328498434,1717462233222,-207.96127058,0.00013533,2]
[328498435,1717462233231,-2191.87131538,0.00013534,2]
[328498436,1717462233240,-201.43616238,0.00013534,2]
[328498437,1717462233249,-658.24107386,0.00013535,2]
[328498438,1717462233260,-10964.64183587,0.00013605,2]
[328498439,1717462233269,-453.0,0.0001368,2]
[328498440,1717462233278,-30.93834189,0.0001368,2]
[328498441,1717462233310,-119.06165811,0.0001368,2]
[328498442,1717462233319,-600.0,0.000139,5]
[328498443,1717462233328,-1072.4069,0.000139,2]
[328498444,1717462233338,-17.7349455,0.00013927,2]
[328498445,1717462233349,-513.28794098,0.00013927,2]
[328498446,1717462233358,-150.0,0.00013973,2]
[328498447,1717462233368,-167.14571763,0.0001399,2]
[328498448,1717462233378,-155.2380211,0.00013998,2]
[328498449,1717462233387,-155.0,0.00013998,2]
[328498450,1717462233396,-364.96719133,0.00013998,2]
[328498451,1717462233405,-158.0964661,0.00013998,2]
[328498452,1717462233415,-237.8220404,0.00013998,2]
[328498453,1717462233425,-3014.3584163,0.00013998,2]
[328498454,1717462233434,-624.86771419,0.00013998,2]
[328498455,1717462233444,-155.13047129,0.00013998,2]
[328498456,1717462233453,-155.0,0.00013998,2]
[328498457,1717462233463,-155.0,0.00013998,2]
[328498458,1717462233474,-155.0,0.00013998,2]
[328498459,1717462233483,-155.0,0.00013998,2]
[328498460,1717462233632,-155.0,0.00013998,2]
[328498461,1717462233643,-155.0,0.00013998,2]
[328498462,1717462233652,-155.0,0.00013998,2]
[328498463,1717462233661,-155.0,0.00013999,2]
[328498464,1717462233671,-166.30963243,0.00013999,2]
[328498466,1717462233681,-8649.69543592,0.00014,2]
[328498468,1717462233692,-3813.17988348,0.00014,2]
[328498471,1717462233704,-496.29675969,0.00014,2]
[328498474,1717462233727,-752.35031756,0.00014,2]
[328498477,1717462233765,-1293.56786175,0.00014,2]
[328498478,1717462233776,-568.36,0.00014,2]
[328498479,1717462233827,-836.07057744,0.00014,2]
[328498480,1717462237561,-72608.11320702,0.00014,2]
[328498481,1717462237572,-1031.11244783,0.00014,2]
[328498482,1717462237827,-55868.31961418,0.00014,2]
[328498484,1717462240298,-361.0983619,0.00014,2]
[328498575,1717462242627,-6921.53516033,0.000139,2]
[328498576,1717462242980,-6144.9665654,0.000139,2]
[328498582,1717462585786,157.060409,0.00031,36]
[328498584,1717462931727,3161.82,0.00031,30]
[328498585,1717463150629,155.0,0.00010344,2]
[328498586,1717463157616,1845.0,0.00010344,2]
[328498587,1717463157636,2000.0,0.00010344,2]
[328498588,1717463157655,441.86690961,0.00010344,2]
[328498589,1717463158469,1275.80404584,0.00010344,2]
[328498590,1717463166951,234.83520174,0.00010344,2]
[328498591,1717463167811,47.49384281,0.00010344,2]
[328498592,1717463167830,480.05852052,0.00010344,2]
[328498593,1717463169281,155.0,0.00010344,2]
[328498594,1717463170569,155.0,0.00010344,2]
[328498595,1717463170709,201.43616238,0.00010344,2]
[328498596,1717463172315,155.0,0.00010344,2]
[328498597,1717463175291,207.96127058,0.00010344,2]
[328498598,1717463178122,524.71984102,0.00010344,2]
[328498599,1717463178445,120.8242055,0.00010344,2]
[328498600,1717463178470,34.1757945,0.00010344,2]
[328498601,1717463179234,155.0,0.00010344,2]
[328498602,1717463180090,155.0,0.00010344,2]
[328498603,1717463187627,855.65609833,0.00010344,2]
[328498604,1717463188057,155.0,0.00010344,2]
[328498605,1717463188445,645.16810717,0.00010344,2]
[328498606,1717463188468,1546.70320821,0.00010344,2]
[328498607,1717463188744,453.29679179,0.00010344,2]
[328498608,1717463188763,2000.0,0.00010344,2]
[328498609,1717463188782,2000.0,0.00010344,2]
[328498610,1717463188801,156.09584356,0.00010344,2]
[328498611,1717463192515,1251.8193427,0.00010344,2]
[328498612,1717463194032,592.08481374,0.00010344,2]
[328498613,1717463194053,66.15626012,0.00010344,2]
[328498614,1717463194535,1933.84373988,0.00010344,2]
[328498630,1717463431831,-785.48718956,0.00010334,2]
[328498631,1717463431841,-155.0,0.00010335,2]
[328498632,1717463431851,-155.0,0.00010335,2]
[328498633,1717463431861,-155.0,0.00010335,2]
[328498634,1717463431870,-193.42064936,0.00010335,2]
[328498635,1717463431882,-1190.83553136,0.00010335,2]
[328498636,1717463431892,-7534.4655871,0.00010337,2]
[328498637,1717463431902,-2367.97259469,0.00010355,2]
[328498638,1717463431911,-562.89,0.00010356,2]
[328498639,1717463431920,-155.0,0.00011503,2]
[328498640,1717463431930,-207.96127058,0.00011504,2]
[328498641,1717463431939,-201.43616238,0.00011504,2]
[328498642,1717463431949,-891.63000506,0.00011507,2]
[328498643,1717463431959,-499.99,0.00011545,2]
[328498644,1717463431969,-1598.93,0.00011545,2]
[328498645,1717463431978,-1104.51,0.00011789,2]
[328498646,1717463431988,-625.63244102,0.00011846,2]
[328498647,1717463431997,-250.0,0.00011876,2]
[328498648,1717463432006,-200.0,0.00011882,2]
[328498649,1717463432016,-1000.0,0.00012031,2]
[328498650,1717463432026,-203.81,0.00012237,2]
[328498651,1717463432035,-167.02581029,0.00012263,2]
[328498652,1717463432048,-82.97418971,0.00012263,2]
[328498653,1717463432058,-203.81,0.00012271,2]
[328498654,1717463432067,-2432.26630666,0.00012274,2]
[328498655,1717463432080,-351.68374011,0.00012274,2]
[328498656,1717463432106,-500.37995323,0.00012274,2]
[328498657,1717463432115,-203.81,0.00012304,2]
[328498658,1717463432127,-150.0,0.00012305,2]
[328498659,1717463432137,-3792.27546629,0.00012328,2]
[328498660,1717463432147,-203.81,0.00012338,2]
[328498661,1717463432156,-246.28377405,0.00012339,2]
[328498662,1717463432166,-266.76294225,0.00012339,2]
[328498663,1717463432175,-457.9857129,0.00012339,2]
[328498664,1717463432184,-1259.39309019,0.00012339,2]
[328498665,1717463432194,-158.01011596,0.00012339,2]
[328498666,1717463432203,-196.47169359,0.00012339,2]
[328498667,1717463432212,-234.6740902,0.00012339,2]
[328498668,1717463432223,-288.4871,0.00012339,2]
[328498669,1717463432233,-524.11731224,0.00012339,2]
[328498670,1717463432242,-155.0,0.00012339,2]
[328498671,1717463432251,-293.15988838,0.00012339,2]
[328498672,1717463432260,-601.78974516,0.00012339,2]
[328498673,1717463432272,-1069.75059082,0.00012339,2]
[328498674,1717463432281,-762.27220142,0.00012339,2]
[328498675,1717463432290,-159.44649709,0.00012339,2]
[328498676,1717463432299,-595.31703833,0.00012339,2]
[328498677,1717463432308,-1058.43278914,0.0001234,2]
[328498678,1717463432317,-4732.62417728,0.00012341,2]
[328498679,1717463432329,-315.0,0.00012341,2]
[328498680,1717463432340,-521.97670531,0.00012341,2]
[328498681,1717463432351,-10229.16574372,0.00012341,2]
[328498682,1717463432362,-1420.97727954,0.00012341,2]
[328498683,1717463432382,-297.182565,0.00012341,2]
[328498684,1717463432395,-2360.35387545,0.00012341,2]
[328498685,1717463432409,-296.53135641,0.00012341,2]
[328498686,1717463432483,-422.76314946,0.00012341,2]
[328498687,1717463432494,-2478.29101073,0.00012341,2]
[328498688,1717463432506,-556.70320369,0.00012341,2]
[328498689,1717463432517,-268.43093341,0.00012341,2]
[328498690,1717463432526,-36.8481741,0.00012372,2]
[328498691,1717463432538,-166.9618259,0.00012372,2]
[328498692,1717463432547,-10964.64183587,0.000124,2]
[328498693,1717463432562,-203.81,0.00012405,2]
[328498694,1717463432571,-203.81,0.00012439,2]
[328498695,1717463432580,-203.81,0.00012472,2]
[328498696,1717463432589,-203.81,0.00012506,2]
[328498697,1717463432598,-203.81,0.00012539,2]
[328498698,1717463432607,-203.81,0.00012573,2]
[328498699,1717463432617,-203.81,0.00012606,2]
[328498700,1717463432626,-562.89,0.0001262,2]
[328498701,1717463432635,-203.81,0.0001264,2]
[328498702,1717463432645,-203.81,0.00012674,2]
[328498703,1717463432654,-203.81,0.00012707,2]
[328498704,1717463432664,-203.81,0.00012741,2]
[328498705,1717463432673,-203.81,0.00012774,2]
[328498706,1717463432682,-203.81,0.00012808,2]
[328498707,1717463432691,-203.81,0.00012841,2]
[328498708,1717463432701,-203.81,0.00012875,2]
[328498709,1717463432710,-1000.0,0.00013534,2]
[328498710,1717463432721,-2751.0,0.00013699,2]
[328498711,1717463432730,-200.0,0.00013699,2]
[328498712,1717463432740,-3000.0,0.0001386,2]
[328498713,1717463432750,-8039.85583529,0.00013899,2]
[328498714,1717463432759,-4101.26767427,0.000139,2]
[328498715,1717463432768,-298.78407833,0.000139,2]
[328498716,1717463432778,-166.86055701,0.000139,2]
[328498717,1717463432787,-600.0,0.000139,5]
[328498718,1717463432797,-161.03351001,0.00013995,2]
[328498719,1717463432807,-309.64152542,0.00013995,2]
[328498720,1717463432816,-172.27514115,0.00013995,2]
[328498721,1717463432827,-163.71065101,0.00013995,2]
[328498722,1717463432836,-155.0,0.00013995,2]
[328498723,1717463432845,-167.76652895,0.00013995,2]
[328498724,1717463432854,-200.58082886,0.00013995,2]
[328498725,1717463432865,-230.61643751,0.00013995,2]
[328498726,1717463432876,-428.36094114,0.00013995,2]
[328498727,1717463432885,-191.59389872,0.00013995,2]
[328498728,1717463432895,-155.09581377,0.00013995,2]
[328498729,1717463432909,-287.70054961,0.00013995,2]
[328498730,1717463432918,-205.03192926,0.00013995,2]
[328498731,1717463432929,-155.26323273,0.00013995,2]
[328498733,1717463432938,-685.99590775,0.00013995,2]
[328498735,1717463432947,-206.79884839,0.00013995,2]
[328498737,1717463432957,-157.02626662,0.00013995,2]
[328498739,1717463432966,-736.66403081,0.00013995,2]
[328498740,1717463432975,-179.28826561,0.00013995,2]
[328498742,1717463432984,-2032.53262273,0.00013995,2]
[328498744,1717463432994,-155.17219878,0.00013995,2]
[328498746,1717463433002,-387.14861747,0.00013995,2]
[328498748,1717463433012,-156.28683818,0.00013995,2]
[328498749,1717463433021,-155.0,0.00013995,2]
[328498750,1717463433030,-762.98484307,0.00013995,2]
[328498751,1717463433040,-155.29149033,0.00013996,2]
[328498752,1717463433049,-155.0,0.00013996,2]
[328498753,1717463433058,-395.14984728,0.00013996,2]
[328498754,1717463433067,-257.09218775,0.00013996,2]
[328498755,1717463433077,-202.29831755,0.00013996,2]
[328498756,1717463433086,-172.5998299,0.00013996,2]
[328498757,1717463433095,-155.35744598,0.00013996,2]
[328498758,1717463433105,-168.0599353,0.00013996,2]
[328498759,1717463433115,-1532.67439124,0.00013996,2]
[328498760,1717463433124,-157.52155783,0.00013996,2]
[328498761,1717463433133,-535.6337843,0.00013996,2]
[328498762,1717463433143,-155.74225539,0.00013996,2]
[328498763,1717463433154,-173.35732692,0.00013996,2]
[328498764,1717463433163,-273.57519809,0.00013996,2]
[328498765,1717463433173,-206.93140244,0.00013996,2]
[328498766,1717463433183,-202.14179385,0.00013996,2]
[328498767,1717463433193,-327.5137528,0.00013996,2]
[328498768,1717463433202,-201.26449152,0.00013996,2]
[328498769,1717463433212,-162.61240183,0.00013997,2]
[328498770,1717463433221,-404.77250217,0.00013997,2]
[328498771,1717463433231,-284.74446671,0.00013997,2]
[328498772,1717463433240,-440.02758746,0.00013997,2]
[328498773,1717463433249,-156.44165612,0.00013997,2]
[328498774,1717463433258,-284.50123554,0.00013997,2]
[328498775,1717463433267,-308.56347244,0.00013997,2]
[328498776,1717463433277,-156.63077785,0.00013997,2]
[328498777,1717463433286,-574.34871661,0.00013997,2]
[328498778,1717463433295,-15571.05513301,0.00013997,2]
[328498779,1717463433305,-155.93210281,0.00013998,2]
[328498780,1717463433314,-267.61741212,0.00013998,2]
[328498781,1717463433323,-718.42864834,0.00013998,2]
[328498782,1717463433332,-242.14432747,0.00013998,2]
[328498783,1717463433341,-328.44902515,0.00013998,2]
[328498784,1717463433350,-3309.77640898,0.00013998,2]
[328498785,1717463433362,-726.42616234,0.00013998,2]
[328498786,1717463433373,-560.2023371,0.00013998,2]
[328498787,1717463433472,-584.31,0.00013998,2]
[328498788,1717463433483,-569.99999994,0.00013998,2]
[328498789,1717463433494,-351.899999,0.00013998,2]
[328498790,1717463433505,-4421.58498072,0.00013998,2]
[328498791,1717463433515,-922.801447,0.00013998,2]
[328498792,1717463433524,-155.37842338,0.00013998,2]
[328498793,1717463433533,-162.76290291,0.00013998,2]
[328498794,1717463433542,-157.30591297,0.00013998,2]
[328498795,1717463433558,-818.92777564,0.00013998,2]
[328498796,1717463433567,-157.90429605,0.00013998,2]
[328498797,1717463433576,-201.84681238,0.00013998,2]
[328498798,1717463433585,-156.2353,0.00013998,2]
[328498799,1717463433598,-1064.33887229,0.00013998,2]
[328498800,1717463433607,-155.30100042,0.00013998,2]
[328498801,1717463433616,-155.87982302,0.00013998,2]
[328498802,1717463433626,-156.74199206,0.00013998,2]
[328498803,1717463433636,-182.10923478,0.00013998,2]
[328498804,1717463433645,-202.72425914,0.00013998,2]
[328498805,1717463433656,-305.53903369,0.00013998,2]
[328498806,1717463433665,-155.97990429,0.00013998,2]
[328498807,1717463433675,-199.08528269,0.00013998,2]
[328498808,1717463433684,-155.85480608,0.00013998,2]
[328498809,1717463433694,-326.04893454,0.00013998,2]
[328498810,1717463433703,-323.29204433,0.00013998,2]
[328498811,1717463433713,-162.57337412,0.00013998,2]
[328498812,1717463433722,-172.04032371,0.00013998,2]
[328498813,1717463433731,-202.30737436,0.00013998,2]
[328498814,1717463433741,-2413.60655903,0.00013998,2]
[328498815,1717463433751,-155.28592067,0.00013998,2]
[328498816,1717463433760,-200.21998404,0.00013998,2]
[328498817,1717463433770,-209.15588465,0.00013999,2]
[328498818,1717463433902,-1947.72339234,0.00013999,2]
[328498819,1717463433935,-623.68761184,0.00013999,2]
[328498820,1717463434362,-1271.46687446,0.00013999,2]
[328498821,1717463434501,-409.69369517,0.00013999,2]
[328498822,1717463434512,-725.31016316,0.00013999,2]
[328498823,1717463434522,-11885.73804067,0.00014,2]
[328498824,1717463434533,-7800.69533894,0.00014,2]
[328498829,1717463437782,-1392.37172164,0.00014,2]
[328498830,1717463437793,-2145.76887824,0.00014,2]
[328498831,1717463437857,-403.21132479,0.00014,2]
[328498832,1717463437868,-707.64191118,0.00014,2]
[328498833,1717463437880,-1236.89030779,0.00014,2]
[328498834,1717463437891,-1651.94935281,0.00014,2]
[328498835,1717463437902,-5358.66810038,0.00014,2]
[328498836,1717463437927,-2072.10473281,0.00014,2]
[328498837,1717463437939,-616.91849786,0.00014,2]
[328498839,1717463438217,-2022.51684951,0.00014,2]
[328498841,1717463438228,-785.23100942,0.00014,2]
[328498843,1717463438240,-1637.09935816,0.00014,2]
[328498845,1717463438251,-494.72760592,0.00014,2]
[328498847,1717463438263,-675.13887568,0.00014,2]
[328498850,1717463438290,-746.89027862,0.00014,2]
[328498852,1717463438302,-2267.44712809,0.00014,2]
[328498855,1717463438316,-16318.24771686,0.00014,2]
[328498858,1717463440537,-51450.38497916,0.00014,2]
[328498859,1717463440550,-4316.5918931,0.00014,2]
[328498860,1717463441335,-104778.57891009,0.00014,2]
[328498861,1717463441348,-2257.23419291,0.00014,2]
[328498862,1717463441360,-2917.37400058,0.00014,2]
[328498863,1717463441373,-681.43362743,0.00014,2]
[328498864,1717463441385,-4423.79925551,0.00014,2]
[328498865,1717463441396,-667.35421737,0.00014,2]
[328498866,1717463441408,-690.0513941,0.00014,2]
[328498867,1717463441434,-8834.29170271,0.00014,2]
[328498903,1717463442994,-447.11137138,0.00014,2]
[328498904,1717463443009,-25927.88933559,0.00014,2]
[328498905,1717463443067,-316.156902,0.00014,2]
[328498906,1717463443199,-3783.98196052,0.00014,2]
[328498907,1717463443235,-64372.16476058,0.00014,2]
[328498908,1717463443414,-368.59145831,0.00014,2]
[328498909,1717463443426,-1953.5013915,0.00014,2]
[328498914,1717463445847,-202.64273673,0.00013999,2]
[328498915,1717463445858,-155.0,0.00013999,2]
[328498916,1717463445868,-17.86877748,0.00014,2]
[328498920,1717463446982,-2786.7933598,0.00014,2]
[328498921,1717463446993,-620.53980725,0.00014,2]
[328498922,1717463447011,-2020.73377463,0.00014,2]
[328498923,1717463447023,-713.10704317,0.00014,2]
[328498924,1717463447035,-2903.57041085,0.00014,2]
[328498925,1717463447050,-453.86796863,0.00014,2]
[328498967,1717464619068,287.39741636,0.0003,30]
[328498968,1717464625056,180.09991879,0.00029,30]
[328498969,1717464632197,-941.4166434,0.00013719,2]
[328498970,1717464632207,-7534.4655871,0.00013719,2]
[328498971,1717464632216,-2609.8027349,0.0001372,2]
[328498972,1717464632225,-159.86435755,0.000139,2]
[328498973,1717464632235,-380.70037141,0.00013912,2]
[328498974,1717464632245,-605.4629941,0.00013996,2]
[328498975,1717464632254,-2993.12549791,0.00013996,2]
[328498976,1717464632264,-635.99793769,0.00013997,2]
[328498977,1717464632275,-574.32971375,0.00013997,2]
[328498978,1717464632446,-598.47990819,0.00013997,2]
[328498979,1717464632456,-784.95201658,0.00013998,2]
[328498980,1717464632465,-170.0831162,0.00013998,2]
[328498981,1717464632475,-360.67031033,0.00013998,2]
[328498982,1717464632484,-291.94752145,0.00013998,2]
[328498983,1717464632493,-337.34701,0.00013998,2]
[328498984,1717464632503,-155.0,0.00013998,2]
[328498985,1717464632512,-4278.94902585,0.00013998,2]
[328498986,1717464632521,-155.00017338,0.00013998,2]
[328498987,1717464632530,-155.0,0.00013998,2]
[328498988,1717464632539,-1247.87118364,0.00013998,2]
[328498989,1717464632549,-162.76290291,0.00013998,2]
[328498990,1717464632559,-832.087225,0.00013998,2]
[328498991,1717464632568,-4398.21863294,0.00013998,2]
[328498992,1717464632579,-22592.65279853,0.00013998,2]
[328498993,1717464632590,-451.81721999,0.00013998,2]
[328498994,1717464632601,-409.12146104,0.00013998,2]
[328498995,1717464632613,-514.29235671,0.00013998,2]
[328498996,1717464632624,-1387.36695236,0.00013998,2]
[328498997,1717464632762,-3016.31033951,0.00013998,2]
[328498998,1717464632772,-523.82451147,0.00013998,2]
[328498999,1717464632781,-1927.6268067,0.00013998,2]
[328499000,1717464632792,-2396.73888252,0.00013998,2]
[328499001,1717464632803,-78.80502265,0.00013998,2]
[328499002,1717464632813,-3079.97215406,0.00013998,2]
[328499003,1717464632822,-356.13965081,0.00013998,2]
[328499004,1717464632831,-1008.02014055,0.00013999,2]
[328499005,1717464632843,-324.15515626,0.00013999,2]
[328499006,1717464632854,-432.49370385,0.00013999,2]
[328499007,1717464632863,-155.17140119,0.00013999,2]
[328499008,1717464632874,-255.32,0.00013999,2]
[328499009,1717464632884,-39721.59281201,0.00014,2]
[328499014,1717464638311,-421.399227,0.00014,2]
[328499015,1717464638477,-14601.68407258,0.00014,2]
[328499016,1717464638781,-441.0,0.00014,2]
[328499057,1717464641356,-2029.3099655,0.00014,2]
[328499059,1717464641368,-859.09973098,0.00014,2]
[328499063,1717464641996,-300749.47930588,0.00014,2]
[328499064,1717464642331,-4658.37809792,0.00014,2]
[328499065,1717464642343,-753.21999999,0.00014,2]
[328499075,1717464643671,-24937.90667845,0.00014,2]
[328499076,1717464643681,-200.0,0.00014,2]
[328499077,1717464643691,-1769.229,0.00014,2]
[328499078,1717464643700,-3000.0,0.00014,2]
[328499079,1717464643710,-7000.0,0.00014,2]
[328499080,1717464643721,-200.0,0.0001414,2]
[328499081,1717464643731,-250.0,0.00014395,2]
[328499082,1717464643740,-1000.0,0.00014524,2]
[328499083,1717464643750,-981.63,0.00014572,2]
[328499084,1717464643759,-8097.35331164,0.00015,2]
[328499085,1717464643769,-184.0633325,0.00015,2]
[328499086,1717464643778,-155.0,0.00015,2]
[328499087,1717464643788,-3121.54986882,0.00015,2]
[328499088,1717464643798,-154.51,0.00015082,2]
[328499089,1717464643807,-154.51,0.0001509,2]
[328499090,1717464643816,-154.51,0.00015098,2]
[328499091,1717464643826,-154.51,0.00015107,2]
[328499092,1717464643835,-154.51,0.00015115,2]
[328499093,1717464643845,-154.51,0.00015123,2]
[328499094,1717464643854,-154.51,0.00015132,2]
[328499095,1717464643863,-154.51,0.0001514,2]
[328499096,1717464643873,-154.51,0.00015149,2]
[328499097,1717464643883,-154.51,0.00015157,2]
[328499098,1717464643892,-523.33,0.00015335,2]
[328499099,1717464643901,-5960.286,0.00015686,2]
[328499100,1717464643911,-290.474,0.00015686,2]
[328499101,1717464643920,-1269.468,0.00015686,2]
[328499102,1717464643930,-1000.0,0.0001634,2]
[328499103,1717464643941,-1803.93057379,0.000165,2]
[328499104,1717464643951,-179.44,0.00016712,2]
[328499105,1717464643960,-736.0,0.00017418,2]
[328499106,1717464643969,-523.33,0.00017599,2]
[328499107,1717464643978,-1000.0,0.00018155,2]
[328499121,1717464644190,-2235.0,0.000184,3]
[328499123,1717464644200,-676.0,0.000185,3]
[328499125,1717464644210,-3000.0,0.00019,2]
[328499127,1717464644219,-500.0,0.00019178,2]
[328499129,1717464644229,-523.33,0.00019863,2]
[328499130,1717464644238,-1000.0,0.00019971,2]
[328499132,1717464644247,-6254.36307268,0.0002,2]
[328499134,1717464644256,-158.88144297,0.0002,2]
[328499136,1717464644266,-1010.24396556,0.0002,2]
[328499138,1717464644275,-736.0,0.00020157,2]
[328499140,1717464644285,-151.0,0.00021037,3]
[328499142,1717464644294,-16547.0,0.000213,2]
[328499144,1717464644304,-474.59,0.0002137,2]
[328499146,1717464644314,-1742.86,0.0002137,2]
[328499147,1717464644324,-1000.0,0.00021786,2]
[328499149,1717464644333,-151.0,0.000219,2]
[328499151,1717464644342,-573.23967012,0.000219,2]
[328499153,1717464644351,-151.15,0.00021918,2]
[328499155,1717464644361,-172.74,0.00021918,2]
[328499157,1717464644370,-250.0,0.00021918,2]
[328499159,1717464644380,-176.5,0.00021918,2]
[328499162,1717464644389,-444.34354984,0.00021998,2]
[328499165,1717464644399,-151.0,0.00021998,7]
[328499168,1717464644408,-151.0,0.00021998,7]
[328499171,1717464644417,-151.0,0.00021998,7]
[328499174,1717464644427,-151.0,0.00021999,7]
[328499177,1717464644438,-154.187834,0.00021999,7]
[328499179,1717464644447,-151.0,0.00021999,7]
[328499182,1717464644455,-151.0,0.00021999,7]
[328499185,1717464644464,-151.0,0.00021999,7]
[328499187,1717464644474,-151.0,0.00021999,7]
[328499189,1717464644483,-151.0,0.00021999,7]
[328499191,1717464644492,-151.0,0.00021999,7]
[328499193,1717464644501,-151.0,0.00021999,7]
[328499194,1717464644510,-151.0,0.00021999,7]
[328499196,1717464644520,-527.93955,0.00021999,2]
[328499198,1717464644529,-527.93955,0.00021999,2]
[328499200,1717464644538,-478.003217,0.00021999,7]
[328499202,1717464644547,-478.003217,0.00021999,7]
[328499204,1717464644556,-152.931277,0.00021999,7]
[328499206,1717464644566,-152.931277,0.00021999,7]
[328499207,1717464644575,-151.0,0.00021999,7]
[328499209,1717464644585,-226.834572,0.00021999,7]
[328499211,1717464644595,-226.834572,0.00021999,7]
[328499213,1717464644605,-151.0,0.00021999,7]
[328499215,1717464644614,-151.0,0.00021999,7]
[328499216,1717464644623,-197.384459,0.00021999,7]
[328499218,1717464644632,-197.384459,0.00021999,7]
[328499220,1717464644642,-151.0,0.00021999,7]
[328499222,1717464644651,-151.0,0.00021999,7]
[328499224,1717464644660,-151.0,0.00021999,7]
[328499226,1717464644669,-151.0,0.00021999,7]
[328499228,1717464644678,-151.0,0.00021999,7]
[328499229,1717464644689,-151.0,0.00021999,7]
[328499231,1717464644698,-349.387154,0.00021999,7]
[328499233,1717464644707,-151.0,0.00021999,7]
[328499235,1717464644716,-151.0,0.00021999,7]
[328499237,1717464644725,-349.387154,0.00021999,7]
[328499239,1717464644735,-151.0,0.00021999,7]
[328499241,1717464644745,-495.119454,0.00021999,7]
[328499242,1717464644754,-495.119454,0.00021999,7]
[328499244,1717464644763,-151.0,0.00021999,7]